lending/lending_fUSD_20250706
["ID","MTS","AMOUNT","RATE_DAILY","PERIOD"]
[369989357,1751813449000,-210.28571445,0.00019218,2]
[369989359,1751813449015,-150.0,0.00019221,2]
[369989361,1751813449025,-150.0,0.00019225,2]
[369989363,1751813449035,-150.0,0.00019226,2]
[369989365,1751813449045,-150.0,0.00019228,2]
[369989367,1751813449055,-150.0,0.00019236,2]
[369989369,1751813449065,-150.0,0.00019238,2]
[369989371,1751813449074,-150.0,0.00019239,2]
[369989373,1751813449084,-159.66,0.00019245,2]
[369989375,1751813449093,-150.0,0.00019246,2]
[369989377,1751813449103,-446.3528892,0.00019248,2]
[369989379,1751813449113,-150.0,0.0001925,2]
[369989381,1751813449123,-150.0,0.00019252,2]
[369989383,1751813449132,-168.0,0.00019255,2]
[369989385,1751813449142,-150.0,0.00019255,2]
[369989387,1751813449152,-500.0,0.00019256,2]
[369989389,1751813449162,-1069.83913823,0.00019258,2]
[369989391,1751813449171,-150.0,0.00019258,2]
[369989393,1751813449180,-151.0,0.0001926,2]
[369989395,1751813449190,-150.0,0.00019268,2]
[369989397,1751813449200,-150.0,0.00019269,2]
[369989399,1751813449209,-150.0,0.00019269,2]
[369989401,1751813449218,-150.0,0.00019279,2]
[369989403,1751813449228,-150.0,0.00019282,2]
[369989405,1751813449237,-150.0,0.00019283,2]
[369989407,1751813449247,-150.0,0.00019288,2]
[369989409,1751813449256,-150.0,0.00019291,2]
[369989411,1751813449265,-150.0,0.00019294,2]
[369989413,1751813449274,-200.0,0.00019296,2]
[369989415,1751813449284,-500.0,0.00019299,2]
[369989417,1751813449294,-408.3034145,0.00019299,2]
[369989418,1751813449303,-500.0,0.00019299,2]
[369989421,1751813449313,-7500.0,0.000193,2]
[369989422,1751813449323,-1172.08,0.000193,2]
[369989424,1751813449332,-150.0,0.000193,2]
[369989426,1751813449342,-151.93016442,0.00019308,2]
[369989428,1751813449351,-150.0,0.00019308,2]
[369989430,1751813449361,-222.74215648,0.00019309,2]
[369989432,1751813449370,-150.0,0.00019321,2]
[369989434,1751813449380,-150.0,0.00019324,2]
[369989436,1751813449390,-151.0,0.00019324,2]
[369989438,1751813449399,-150.0,0.00019325,2]
[369989440,1751813449408,-150.0,0.00019327,2]
[369989442,1751813449417,-150.0,0.00019335,2]
[369989444,1751813449427,-150.0,0.00019336,2]
[369989445,1751813449436,-150.0,0.00019338,2]
[369989446,1751813449445,-200.0,0.0001934,2]
[369989447,1751813449454,-150.0,0.00019344,2]
[369989448,1751813449463,-150.0,0.0001935,2]
[369989450,1751813449472,-150.0,0.00019351,2]
[369989452,1751813449482,-267.72652626,0.00019352,2]
[369989454,1751813449491,-151.0,0.00019352,2]
[369989456,1751813449501,-150.0,0.00019354,2]
[369989458,1751813449510,-150.0,0.00019354,2]
[369989460,1751813449519,-151.0,0.00019355,2]
[369989462,1751813449529,-500.0,0.00019355,2]
[369989464,1751813449538,-500.0,0.00019355,2]
[369989466,1751813449548,-500.0,0.00019355,2]
[369989468,1751813449557,-500.0,0.00019355,2]
[369989470,1751813449566,-500.0,0.00019355,2]
[369989472,1751813449576,-500.0,0.00019355,2]
[369989474,1751813449585,-500.0,0.00019355,2]
[369989476,1751813449595,-500.0,0.00019355,2]
[369989478,1751813449604,-500.0,0.00019355,2]
[369989480,1751813449614,-500.0,0.00019355,2]
[369989482,1751813449623,-500.0,0.00019355,2]
[369989484,1751813449632,-500.0,0.00019355,2]
[369989486,1751813449642,-500.0,0.00019355,2]
[369989488,1751813449651,-500.0,0.00019355,2]
[369989490,1751813449660,-500.0,0.00019355,2]
[369989492,1751813449670,-500.0,0.00019355,2]
[369989494,1751813449679,-500.0,0.00019355,2]
[369989496,1751813449689,-500.0,0.00019355,2]
[369989498,1751813449698,-500.0,0.00019355,2]
[369989500,1751813449708,-500.0,0.00019355,2]
[369989502,1751813449717,-500.0,0.00019355,2]
[369989504,1751813449727,-500.0,0.00019355,2]
[369989506,1751813449736,-500.0,0.00019355,2]
[369989508,1751813449746,-500.0,0.00019355,2]
[369989510,1751813449756,-500.0,0.00019355,2]
[369989512,1751813449765,-500.0,0.00019355,2]
[369989514,1751813449774,-500.0,0.00019355,2]
[369989516,1751813449784,-500.0,0.00019355,2]
[369989518,1751813449793,-500.0,0.00019355,2]
[369989520,1751813449802,-500.0,0.00019355,2]
[369989522,1751813449811,-500.0,0.00019355,2]
[369989524,1751813449820,-500.0,0.00019355,2]
[369989526,1751813449830,-500.0,0.00019355,2]
[369989528,1751813449839,-515.9067,0.00019355,2]
[369989530,1751813449848,-150.0,0.00019356,2]
[369989532,1751813449857,-150.0,0.00019357,2]
[369989534,1751813449867,-150.0,0.00019359,2]
[369989536,1751813449877,-150.0,0.00019364,2]
[369989538,1751813449888,-150.0,0.00019365,2]
[369989540,1751813449898,-150.0,0.00019367,2]
[369989542,1751813449908,-150.0,0.00019367,2]
[369989544,1751813449917,-150.0,0.00019381,2]
[369989546,1751813449927,-973.0,0.00019382,2]
[369989548,1751813449937,-150.0,0.00019386,2]
[369989550,1751813449947,-150.0,0.00019387,2]
[369989552,1751813449957,-151.0,0.00019388,2]
[369989554,1751813449966,-150.0,0.00019391,2]
[369989556,1751813449977,-150.0,0.00019393,2]
[369989558,1751813449987,-150.0,0.00019398,2]
[369989560,1751813449996,-194.39736012,0.00019399,2]
[369989562,1751813450006,-150.0,0.000194,2]
[369989564,1751813450016,-7500.0,0.000194,2]
[369989566,1751813450026,-1773.0,0.000194,2]
[369989568,1751813450035,-168.0,0.00019403,2]
[369989570,1751813450045,-150.0,0.00019404,2]
[369989573,1751813450055,-150.0,0.00019405,2]
[369989575,1751813450065,-150.0,0.00019407,2]
[369989577,1751813450074,-150.0,0.00019413,2]
[369989579,1751813450084,-150.0,0.00019413,2]
[369989581,1751813450094,-1173.1,0.00019418,2]
[369989583,1751813450103,-446.3528892,0.00019419,2]
[369989585,1751813450113,-153.85685236,0.0001942,2]
[369989587,1751813450122,-150.0,0.00019421,2]
[369989589,1751813450132,-150.0,0.00019426,2]
[369989591,1751813450141,-2202.76,0.0001943,2]
[369989593,1751813450151,-150.0,0.00019432,2]
[369989595,1751813450160,-1069.83913823,0.00019438,2]
[369989597,1751813450170,-150.0,0.00019442,2]
[369989599,1751813450179,-196.23947154,0.00019442,2]
[369989601,1751813450188,-500.0,0.00019445,2]
[369989602,1751813450198,-5871.2797465,0.00019446,2]
[369989605,1751813450208,-151.0,0.00019446,2]
[369989607,1751813450218,-500.0,0.00019449,2]
[369989609,1751813450229,-2238.1452377,0.0001945,2]
[369989610,1751813450238,-89119.5123955,0.0001945,2]
[369989612,1751813450248,-438.56,0.00019451,2]
[369989614,1751813450257,-500.0,0.00019451,2]
[369989616,1751813450266,-500.0,0.00019451,2]
[369989618,1751813450276,-500.0,0.00019451,2]
[369989620,1751813450286,-500.0,0.00019451,2]
[369989622,1751813450296,-500.0,0.00019451,2]
[369989624,1751813450306,-500.0,0.00019451,2]
[369989626,1751813450316,-548.150102,0.00019452,2]
[369989628,1751813450326,-1273.11036,0.00019452,2]
[369989630,1751813450335,-505.477454,0.00019452,2]
[369989632,1751813450345,-460.0,0.00019452,2]
[369989634,1751813450355,-447.60267903,0.00019452,2]
[369989636,1751813450364,-460.0,0.00019452,2]
[369989638,1751813450374,-211.0,0.00019452,2]
[369989640,1751813450384,-460.0,0.00019452,2]
[369989642,1751813450394,-460.0,0.00019452,2]
[369989644,1751813450404,-469.1404716,0.00019452,2]
[369989646,1751813450414,-151.0,0.00019452,2]
[369989648,1751813450424,-460.0,0.00019452,2]
[369989650,1751813450433,-460.0,0.00019452,2]
[369989652,1751813450442,-465.94922773,0.00019452,2]
[369989654,1751813450451,-460.0,0.00019452,2]
[369989656,1751813450465,-460.0,0.00019452,2]
[369989658,1751813450475,-152.71424451,0.00019452,2]
[369989660,1751813450484,-460.0,0.00019452,2]
[369989662,1751813450496,-460.0,0.00019452,2]
[369989664,1751813450505,-469.29967692,0.00019452,2]
[369989666,1751813450515,-460.0,0.00019452,2]
[369989668,1751813450524,-460.0,0.00019452,2]
[369989670,1751813450534,-523.98873462,0.00019452,2]
[369989672,1751813450544,-460.0,0.00019452,2]
[369989674,1751813450554,-460.0,0.00019452,2]
[369989676,1751813450563,-460.0,0.00019452,2]
[369989678,1751813450572,-460.8987072,0.00019452,2]
[369989680,1751813450581,-362.98551477,0.00019452,2]
[369989682,1751813450591,-460.0,0.00019452,2]
[369989684,1751813450601,-460.0,0.00019452,2]
[369989686,1751813450610,-460.0,0.00019452,2]
[369989688,1751813450620,-460.0,0.00019452,2]
[369989690,1751813450630,-593.5,0.00019452,2]
[369989692,1751813450639,-300.22924231,0.00019452,2]
[369989694,1751813450650,-460.0,0.00019452,2]
[369989696,1751813450660,-474.74263173,0.00019452,2]
[369989698,1751813450671,-499.9106866,0.00019452,2]
[369989700,1751813450682,-475.79113229,0.00019452,2]
[369989702,1751813450691,-460.0,0.00019452,2]
[369989704,1751813450701,-460.0,0.00019452,2]
[369989706,1751813450710,-460.0,0.00019452,2]
[369989708,1751813450720,-686.23,0.00019452,2]
[369989710,1751813450730,-460.0,0.00019452,2]
[369989712,1751813450739,-460.0,0.00019452,2]
[369989721,1751813450818,-460.0,0.00019452,2]
[369989723,1751813450828,-460.0,0.00019452,2]
[369989725,1751813450837,-460.0,0.00019452,2]
[369989727,1751813450847,-460.0,0.00019452,2]
[369989729,1751813450856,-484.2668795,0.00019452,2]
[369989731,1751813450865,-469.17354215,0.00019452,2]
[369989733,1751813450874,-460.0,0.00019452,2]
[369989735,1751813450883,-460.0,0.00019452,2]
[369989737,1751813450893,-460.0,0.00019452,2]
[369989739,1751813450902,-460.0,0.00019452,2]
[369989741,1751813450911,-460.0,0.00019452,2]
[369989743,1751813450920,-460.0,0.00019452,2]
[369989745,1751813450930,-460.0,0.00019452,2]
[369989747,1751813450938,-460.0,0.00019452,2]
[369989749,1751813450948,-494.22,0.00019452,2]
[369989751,1751813450957,-460.0,0.00019452,2]
[369989753,1751813450967,-460.0,0.00019452,2]
[369989755,1751813450977,-460.0,0.00019452,2]
[369989757,1751813450986,-460.0,0.00019452,2]
[369989759,1751813450998,-460.0,0.00019452,2]
[369989761,1751813451012,-494.37,0.00019452,2]
[369989762,1751813451022,-460.0,0.00019452,2]
[369989764,1751813451032,-460.0,0.00019452,2]
[369989766,1751813451042,-460.0,0.00019452,2]
[369989768,1751813451051,-460.0,0.00019452,2]
[369989770,1751813451061,-460.0,0.00019452,2]
[369989772,1751813451071,-510.79353404,0.00019452,2]
[369989774,1751813451083,-460.0,0.00019452,2]
[369989776,1751813451093,-460.0,0.00019452,2]
[369989778,1751813451103,-460.0,0.00019452,2]
[369989780,1751813451113,-460.0,0.00019452,2]
[369989782,1751813451123,-460.0,0.00019452,2]
[369989784,1751813451133,-460.0,0.00019452,2]
[369989786,1751813451143,-460.0,0.00019452,2]
[369989788,1751813451152,-460.0,0.00019452,2]
[369989790,1751813451161,-460.0,0.00019452,2]
[369989793,1751813451171,-460.0,0.00019452,2]
[369989794,1751813451180,-460.0,0.00019452,2]
[369989796,1751813451190,-460.0,0.00019452,2]
[369989798,1751813451199,-460.0,0.00019452,2]
[369989800,1751813451208,-460.0,0.00019452,2]
[369989802,1751813451217,-460.0,0.00019452,2]
[369989804,1751813451227,-460.0,0.00019452,2]
[369989806,1751813451237,-460.0,0.00019452,2]
[369989808,1751813451246,-460.0,0.00019452,2]
[369989810,1751813451255,-460.0,0.00019452,2]
[369989812,1751813451266,-460.0,0.00019452,2]
[369989814,1751813451275,-460.0,0.00019452,2]
[369989816,1751813451284,-374.83,0.00019452,2]
[369989818,1751813451294,-460.0,0.00019452,2]
[369989820,1751813451303,-460.0,0.00019452,2]
[369989822,1751813451312,-460.0,0.00019452,2]
[369989824,1751813451321,-460.0,0.00019452,2]
[369989826,1751813451331,-460.0,0.00019452,2]
[369989828,1751813451340,-460.0,0.00019452,2]
[369989830,1751813451349,-460.0,0.00019452,2]
[369989832,1751813451358,-460.0,0.00019452,2]
[369989833,1751813451368,-460.0,0.00019452,2]
[369989835,1751813451377,-460.0,0.00019452,2]
[369989837,1751813451386,-460.0,0.00019452,2]
[369989839,1751813451395,-807.36,0.00019452,2]
[369989841,1751813451405,-460.0,0.00019452,2]
[369989843,1751813451414,-460.0,0.00019452,2]
[369989844,1751813451424,-460.0,0.00019452,2]
[369989845,1751813451433,-460.0,0.00019452,2]
[369989846,1751813451442,-466.81570012,0.00019452,2]
[369989847,1751813451451,-953.12,0.00019452,2]
[369989848,1751813451460,-460.0,0.00019452,2]
[369989849,1751813451469,-460.0,0.00019452,2]
[369989850,1751813451481,-460.0,0.00019452,2]
[369989851,1751813451490,-460.0,0.00019452,2]
[369989852,1751813451499,-460.0,0.00019452,2]
[369989853,1751813451508,-460.0,0.00019452,2]
[369989854,1751813451518,-460.0,0.00019452,2]
[369989855,1751813451528,-460.0,0.00019452,2]
[369989857,1751813451537,-460.0,0.00019452,2]
[369989859,1751813451546,-288.745644,0.00019452,2]
[369989861,1751813451556,-460.0,0.00019452,2]
[369989863,1751813451565,-692.48,0.00019452,2]
[369989865,1751813451574,-460.0,0.00019452,2]
[369989866,1751813451584,-584.79,0.00019452,2]
[369989868,1751813451594,-460.0,0.00019452,2]
[369989870,1751813451603,-460.0,0.00019452,2]
[369989872,1751813451612,-460.0,0.00019452,2]
[369989874,1751813451621,-460.0,0.00019452,2]
[369989876,1751813451630,-686.8,0.00019452,2]
[369989878,1751813451639,-645.74,0.00019452,2]
[369989879,1751813451649,-460.0,0.00019452,2]
[369989880,1751813451658,-691.68,0.00019452,2]
[369989881,1751813451667,-460.0,0.00019452,2]
[369989882,1751813451677,-460.0,0.00019452,2]
[369989883,1751813451686,-577.46,0.00019452,2]
[369989884,1751813451697,-460.0,0.00019452,2]
[369989885,1751813451707,-460.0,0.00019452,2]
[369989886,1751813451716,-728.31,0.00019452,2]
[369989887,1751813451725,-460.0,0.00019452,2]
[369989888,1751813451735,-460.0,0.00019452,2]
[369989889,1751813451744,-460.0,0.00019452,2]
[369989890,1751813451754,-626.13,0.00019452,2]
[369989891,1751813451764,-460.0,0.00019452,2]
[369989892,1751813451775,-460.0,0.00019452,2]
[369989893,1751813451785,-470.93817069,0.00019452,2]
[369989894,1751813451796,-460.0,0.00019452,2]
[369989895,1751813451805,-460.0,0.00019452,2]
[369989896,1751813451814,-460.0,0.00019452,2]
[369989897,1751813451824,-460.0,0.00019452,2]
[369989898,1751813451833,-460.0,0.00019452,2]
[369989899,1751813451842,-772.31,0.00019452,2]
[369989901,1751813451851,-460.0,0.00019452,2]
[369989903,1751813451860,-597.3,0.00019452,2]
[369989905,1751813451869,-460.0,0.00019452,2]
[369989907,1751813451879,-460.0,0.00019452,2]
[369989909,1751813451889,-599.01,0.00019452,2]
[369989910,1751813451899,-460.0,0.00019452,2]
[369989911,1751813451908,-460.0,0.00019452,2]
[369989912,1751813451918,-593.31,0.00019452,2]
[369989913,1751813451927,-508.24272613,0.00019452,2]
[369989914,1751813451936,-460.0,0.00019452,2]
[369989915,1751813451946,-163.770118,0.00019452,2]
[369989916,1751813451955,-460.0,0.00019452,2]
[369989917,1751813451964,-460.0,0.00019452,2]
[369989918,1751813451974,-460.0,0.00019452,2]
[369989920,1751813451983,-460.0,0.00019452,2]
[369989922,1751813451992,-460.0,0.00019452,2]
[369989924,1751813452001,-460.0,0.00019452,2]
[369989926,1751813452014,-520.0,0.00019452,2]
[369989928,1751813452024,-491.1,0.00019452,2]
[369989929,1751813452033,-264.95725729,0.00019452,2]
[369989931,1751813452042,-674.41,0.00019452,2]
[369989933,1751813452052,-771.01,0.00019452,2]
[369989935,1751813452061,-460.0,0.00019452,2]
[369989937,1751813452071,-665.2,0.00019452,2]
[369989939,1751813452081,-460.0,0.00019452,2]
[369989941,1751813452091,-460.0,0.00019452,2]
[369989942,1751813452101,-467.69405679,0.00019452,2]
[369989944,1751813452111,-200.0,0.00019452,2]
[369989945,1751813452120,-460.0,0.00019452,2]
[369989946,1751813452130,-460.0,0.00019452,2]
[369989947,1751813452139,-460.0,0.00019452,2]
[369989948,1751813452148,-460.0,0.00019452,2]
[369989949,1751813452157,-460.0,0.00019452,2]
[369989950,1751813452166,-460.0,0.00019452,2]
[369989951,1751813452176,-150.0,0.00019452,2]
[369989952,1751813452185,-801.8,0.00019452,2]
[369989953,1751813452194,-460.0,0.00019452,2]
[369989954,1751813452204,-150.0,0.00019452,2]
[369989955,1751813452213,-460.0,0.00019452,2]
[369989956,1751813452223,-390.57173098,0.00019452,2]
[369989957,1751813452233,-460.0,0.00019452,2]
[369989958,1751813452242,-833.67,0.00019452,2]
[369989959,1751813452251,-460.0,0.00019452,2]
[369989960,1751813452260,-460.0,0.00019452,2]
[369989961,1751813452270,-460.0,0.00019452,2]
[369989962,1751813452280,-581.24,0.00019452,2]
[369989963,1751813452290,-460.0,0.00019452,2]
[369989964,1751813452299,-549.31,0.00019452,2]
[369989965,1751813452309,-460.0,0.00019452,2]
[369989966,1751813452318,-460.0,0.00019452,2]
[369989967,1751813452327,-460.0,0.00019452,2]
[369989968,1751813452336,-460.0,0.00019452,2]
[369989969,1751813452345,-460.0,0.00019452,2]
[369989970,1751813452354,-460.0,0.00019452,2]
[369989971,1751813452363,-460.0,0.00019452,2]
[369989972,1751813452372,-460.0,0.00019452,2]
[369989973,1751813452382,-460.0,0.00019452,2]
[369989975,1751813452391,-481.07,0.00019452,2]
[369989977,1751813452400,-460.0,0.00019452,2]
[369989979,1751813452409,-722.58,0.00019452,2]
[369989981,1751813452418,-522.61,0.00019452,2]
[369989982,1751813452428,-691.1,0.00019452,2]
[369989985,1751813452439,-673.74,0.00019452,2]
[369989986,1751813452448,-460.0,0.00019452,2]
[369989988,1751813452459,-460.0,0.00019452,2]
[369989990,1751813452469,-544.24,0.00019452,2]
[369989993,1751813452487,-460.0,0.00019452,2]
[369989995,1751813452497,-460.0,0.00019452,2]
[369989997,1751813452506,-460.0,0.00019452,2]
[369989999,1751813452515,-460.0,0.00019452,2]
[369990001,1751813452524,-477.98,0.00019452,2]
[369990003,1751813452534,-460.0,0.00019452,2]
[369990005,1751813452547,-1020.77,0.00019452,2]
[369990007,1751813452557,-460.0,0.00019452,2]
[369990009,1751813452565,-460.0,0.00019452,2]
[369990011,1751813452574,-545.74,0.00019452,2]
[369990013,1751813452583,-460.0,0.00019452,2]
[369990015,1751813452592,-151.0,0.00019452,2]
[369990017,1751813452602,-151.0,0.00019452,2]
[369990019,1751813452611,-151.0,0.00019452,2]
[369990021,1751813452619,-460.0,0.00019452,2]
[369990022,1751813452629,-460.0,0.00019452,2]
[369990024,1751813452638,-539.37,0.00019452,2]
[369990026,1751813452647,-460.0,0.00019452,2]
[369990029,1751813452657,-460.0,0.00019452,2]
[369990030,1751813452666,-460.0,0.00019452,2]
[369990032,1751813452675,-460.0,0.00019452,2]
[369990035,1751813452685,-645.33,0.00019452,2]
[369990036,1751813452694,-460.0,0.00019452,2]
[369990038,1751813452703,-460.0,0.00019452,2]
[369990040,1751813452712,-460.0,0.00019452,2]
[369990043,1751813452722,-745.81,0.00019452,2]
[369990045,1751813452733,-460.0,0.00019452,2]
[369990046,1751813452742,-578.45511117,0.00019452,2]
[369990049,1751813452751,-460.0,0.00019452,2]
[369990050,1751813452760,-460.0,0.00019452,2]
[369990052,1751813452770,-460.0,0.00019452,2]
[369990055,1751813452779,-460.0,0.00019452,2]
[369990056,1751813452788,-460.0,0.00019452,2]
[369990059,1751813452798,-1413.52,0.00019452,2]
[369990061,1751813452806,-460.0,0.00019452,2]
[369990062,1751813452816,-460.0,0.00019452,2]
[369990065,1751813452825,-460.0,0.00019452,2]
[369990067,1751813452834,-460.0,0.00019452,2]
[369990069,1751813452844,-460.0,0.00019452,2]
[369990070,1751813452853,-508.0756509,0.00019452,2]
[369990072,1751813452862,-460.0,0.00019452,2]
[369990074,1751813452871,-460.0,0.00019452,2]
[369990076,1751813452880,-460.0,0.00019452,2]
[369990078,1751813452889,-727.08,0.00019452,2]
[369990080,1751813452898,-460.0,0.00019452,2]
[369990082,1751813452907,-460.0,0.00019452,2]
[369990084,1751813452916,-623.41,0.00019452,2]
[369990086,1751813452925,-30.56684756,0.00019452,2]
[369990119,1751813453994,-166.92808962,0.00019177,2]
[369990120,1751813454005,-460.0,0.00019178,2]
[369990121,1751813454020,-429.43315244,0.00019452,2]
[369990122,1751813454030,-460.0,0.00019452,2]
[369990123,1751813454040,-460.0,0.00019452,2]
[369990124,1751813454051,-460.0,0.00019452,2]
[369990125,1751813454063,-460.0,0.00019452,2]
[369990126,1751813454073,-460.34,0.00019452,2]
[369990127,1751813454083,-460.0,0.00019452,2]
[369990128,1751813454094,-822.25,0.00019452,2]
[369990129,1751813454104,-460.0,0.00019452,2]
[369990130,1751813454115,-299.9674251,0.00019452,2]
[369990131,1751813454136,-294.4525749,0.00019452,2]
[369990132,1751813454146,-813.67,0.00019452,2]
[369990133,1751813454156,-460.0,0.00019452,2]
[369990134,1751813454166,-708.77,0.00019452,2]
[369990135,1751813454176,-460.0,0.00019452,2]
[369990136,1751813454186,-10.63677971,0.00019452,2]
[369990137,1751813454229,-449.36322029,0.00019452,2]
[369990138,1751813454239,-511.55,0.00019452,2]
[369990139,1751813454249,-460.0,0.00019452,2]
[369990140,1751813454259,-369.89677971,0.00019452,2]
[369990141,1751813454272,-90.10322029,0.00019452,2]
[369990142,1751813454282,-460.0,0.00019452,2]
[369990143,1751813454292,-460.0,0.00019452,2]
[369990144,1751813454302,-460.0,0.00019452,2]
[369990145,1751813454312,-460.0,0.00019452,2]
[369990146,1751813454323,-460.0,0.00019452,2]
[369990147,1751813454333,-460.0,0.00019452,2]
[369990148,1751813454344,-701.54,0.00019452,2]
[369990149,1751813454353,-460.0,0.00019452,2]
[369990150,1751813454363,-296.75677971,0.00019452,2]
[369990151,1751813454390,-163.24322029,0.00019452,2]
[369990152,1751813454400,-471.28434721,0.00019452,2]
[369990153,1751813454410,-253.71157176,0.00019452,2]
[369990154,1751813454420,-466.20704825,0.00019452,2]
[369990155,1751813454430,-787.81,0.00019452,2]
[369990156,1751813454440,-172.75753984,0.00019452,2]
[369990157,1751813454462,-291.853628,0.00017931,2]
[369990158,1751813454474,-58.53879948,0.00017931,2]
[369990159,1751813454485,-287.24246016,0.00019452,2]
[369990160,1751813454495,-460.0,0.00019452,2]
[369990161,1751813454505,-460.0,0.00019452,2]
[369990162,1751813454515,-460.0,0.00019452,2]
[369990163,1751813454527,-527.97,0.00019452,2]
[369990164,1751813454539,-460.0,0.00019452,2]
[369990165,1751813454551,-630.99,0.00019452,2]
[369990166,1751813454560,-530.95,0.00019452,2]
[369990167,1751813454570,-460.0,0.00019452,2]
[369990168,1751813454580,-460.0,0.00019452,2]
[369990169,1751813454590,-460.0,0.00019452,2]
[369990170,1751813454600,-460.0,0.00019452,2]
[369990171,1751813454611,-460.0,0.00019452,2]
[369990172,1751813454620,-709.09,0.00019452,2]
[369990173,1751813454631,-580.96,0.00019452,2]
[369990174,1751813454642,-460.0,0.00019452,2]
[369990175,1751813454651,-659.37,0.00019452,2]
[369990176,1751813454661,-460.0,0.00019452,2]
[369990177,1751813454671,-460.0,0.00019452,2]
[369990178,1751813454682,-467.38889835,0.00019452,2]
[369990179,1751813454691,-460.0,0.00019452,2]
[369990180,1751813454701,-2509.18,0.00019452,2]
[369990181,1751813454711,-193.018333,0.00019452,2]
[369990182,1751813454721,-460.0,0.00019452,2]
[369990183,1751813454731,-460.0,0.00019452,2]
[369990184,1751813454742,-460.0,0.00019452,2]
[369990185,1751813454752,-460.0,0.00019452,2]
[369990186,1751813454764,-690.89,0.00019452,2]
[369990187,1751813454774,-676.2,0.00019452,2]
[369990188,1751813454784,-460.0,0.00019452,2]
[369990189,1751813454794,-460.0,0.00019452,2]
[369990190,1751813454804,-460.0,0.00019452,2]
[369990191,1751813454813,-460.0,0.00019452,2]
[369990192,1751813454823,-460.0,0.00019452,2]
[369990193,1751813454833,-460.0,0.00019452,2]
[369990194,1751813454843,-616.19,0.00019452,2]
[369990195,1751813454853,-460.0,0.00019452,2]
[369990196,1751813454863,-941.09,0.00019452,2]
[369990197,1751813454873,-460.0,0.00019452,2]
[369990198,1751813454883,-460.0,0.00019452,2]
[369990199,1751813454892,-460.0,0.00019452,2]
[369990200,1751813454901,-460.0,0.00019452,2]
[369990201,1751813454911,-460.0,0.00019452,2]
[369990202,1751813454921,-460.0,0.00019452,2]
[369990203,1751813454931,-460.0,0.00019452,2]
[369990204,1751813454940,-460.0,0.00019452,2]
[369990205,1751813454950,-460.0,0.00019452,2]
[369990206,1751813454960,-8074.75,0.00019452,2]
[369990207,1751813454970,-460.0,0.00019452,2]
[369990208,1751813454980,-1026.92,0.00019452,2]
[369990209,1751813454991,-460.0,0.00019452,2]
[369990210,1751813455001,-537.61,0.00019452,2]
[369990211,1751813455015,-460.0,0.00019452,2]
[369990212,1751813455025,-460.4,0.00019452,2]
[369990213,1751813455036,-460.0,0.00019452,2]
[369990214,1751813455045,-320.04252894,0.00019452,2]
[369990215,1751813455055,-460.0,0.00019452,2]